Cogmind - Beta 9.6 @@@ ROGUE MODE // 2020.06.28 @ 19:53:30 Player: AxaxaxasMlo Result: Destroyed by S-10 Pest with Light Assault Rifle Performance ------------- Evolutions (1) 500 Regions Visited (2) 400 Robots Destroyed (12) 60 Value Destroyed (182) 182 Prototype IDs (0) 0 Alien Tech Used (0) 0 Bonus (0) 0 TOTAL SCORE: 1142 Bonus ------- None Cogmind --------- Core Integrity 0/400 Matter 300/300 Energy 98/100 System Corruption 0% Temperature Cool (0) Movement Core (50) Location -9/Materials Parts ------- > --- POWER (1) -------- (None) > --- PROPULSION (3) --- (None) > --- UTILITY (3) ------ Visual Processing Unit Signal Interpreter > --- WEAPON (2) ------- (None) > --- INVENTORY (4) ---- Medium Storage Unit Sensor Array Peak State ------------ > --- POWER ------------ Ion Engine > --- PROPULSION ------- Improved Treads Improved Treads Wheel > --- UTILITY ---------- Visual Processing Unit Sensor Array Signal Interpreter > --- WEAPON ----------- Heavy EM Pulse Gun Heavy EM Pulse Gun > --- INVENTORY -------- Medium Storage Unit Mining Laser [Rating: 14] Favorites ----------- Power Ion Engine Engine Ion Engine Propulsion Wheel Treads Improved Treads Wheel Wheel Flight Unit Flight Unit Utility Signal Interpreter Device Sensor Array Storage Medium Storage Unit Processor Signal Interpreter Weapon Heavy EM Pulse Gun Energy Gun Heavy EM Pulse Gun Special Weapon Mining Laser Build | -11 -10 -9 ------- Run | Scr Mat Mat Slots Evolved 2 | . . 2 Power . | . . . Propulsion 1 | . . 1 Utility 1 | . . 1 Weapon . | . . . Parts Attached 28 | 6 19 3 Power 2 | 1 1 . Engine 2 | 1 1 . Core . | . . . Reactor . | . . . Propulsion 12 | 2 9 1 Treads 4 | . 3 1 Leg . | . . . Wheel 6 | 2 4 . Hover . | . . . Flight 2 | . 2 . Utility 7 | 1 5 1 Device 2 | . 2 . Storage 3 | 1 2 . Processor 2 | . 1 1 Hackware . | . . . Protection . | . . . Artifact . | . . . Weapon 7 | 2 4 1 Energy Gun 6 | 2 4 . Energy Cannon . | . . . Ballistic Gun . | . . . Ballistic Cannon . | . . . Launcher . | . . . Special Weapon 1 | . . 1 Impact Weapon . | . . . Slashing Weapon . | . . . Piercing Weapon . | . . . Special Melee Weapon . | . . . Unidentified Prototypes . | . . . Parts Lost 11 | . 5 6 Power 2 | . 1 1 Propulsion 4 | . 2 2 Utility . | . . . Weapon 5 | . 2 3 Highest Loss Streak 5 | . 5 5 Average Slot Usage (%) 90 | . 96 73 Engine 12 | . 13 7 Treads 11 | . 9 16 Wheel 14 | . 17 6 Device 7 | . 7 7 Storage 8 | . 11 . Processor 10 | . 7 21 Energy Gun 23 | . 26 13 Naked Turns . | . . . Heaviest Build 20 | 13 20 12 Greatest Support 46 | 20 46 46 Greatest Overweight (x) 2 | . 2 1 Average Overweight (x) . | . . . Largest Inventory Capacity 8 | 6 8 4 Average Capacity 5 | 4 6 4 Most Carried 7 | 4 7 3 Average Carried 3 | 1 4 2 Final Capacity 6 | 6 4 4 Final Carried 4 | 4 4 2 Class Distribution -------------------- 89% | Mutant 10% | Skirmisher Dominant Class ---------------- Mutant | -10/Materials Mutant | -9/Materials Resources | -11 -10 -9 ----------- Run | Scr Mat Mat Matter Collected 475 | 260 129 86 Remotely . | . . . Salvage Created 215 | . 155 60 Parts 21 | . 18 3 Haulers Intercepted . | . . . Recyclers Shooed . | . . . Parts Field Recycled . | . . . Retrieved Matter . | . . . Parts Self-Destructed . | . . . Prevented . | . . . Kills | -11 -10 -9 ------- Run | Scr Mat Mat Combat Hostiles Destroyed 10 | . 9 1 Guns 8 | . 7 1 AOE 2 | . 2 . Classes Destroyed 4 | . 3 1 Worker 1 | . 1 . Watcher 1 | . 1 . Swarmer 9 | . 9 . Sentry 1 | . . 1 Best Kill Streak 4 | . 4 1 Combat Bots Only 3 | . 3 1 Max Kills in Single Turn 3 | . 3 1 Gunslinging . | . . . Exploded 2 | . 2 . Melee . | . . . Uniques/NPCs Destroyed . | . . . Combat | -11 -10 -9 -------- Run | Scr Mat Mat Damage Taken 1381 | . 442 939 Core 525 | . 120 405 Absorbed by Shields . | . . . Core Remaining (%) 76 | 100 52 . Volleys Fired 25 | . 16 9 Largest 2 | . 2 2 Hottest 100 | . 90 100 Shots Fired 43 | . 32 11 Gun 42 | . 32 10 Cannon . | . . . Launcher . | . . . Special 1 | . . 1 Kinetic . | . . . Thermal 1 | . . 1 Explosive . | . . . Electromagnetic 42 | . 32 10 Robot Hit Streak 12 | . 4 12 Robot Miss Streak 6 | . 6 . Penetration Max . | . . . Secondary Targets 1 | . 1 . Max Gunslinging Chain 1 | . 1 . Shots Hit Robots 22 | . 12 10 Core Hits 14 | . 11 3 Critical Hits . | . . . Critical Kills . | . . . Critical Parts Destroyed . | . . . Melee Attacks . | . . . Impact . | . . . Slashing . | . . . Piercing . | . . . Sneak Attacks . | . . . Combat Hostiles . | . . . Follow-up Attacks . | . . . Damage Inflicted 714 | . 548 166 Guns 374 | . 232 142 Cannons . | . . . Explosions 316 | . 316 . Melee . | . . . Ramming 24 | . . 24 Kinetic . | . . . Thermal . | . . . Explosive 316 | . 316 . Electromagnetic 374 | . 232 142 Impact . | . . . Slashing . | . . . Piercing . | . . . Highest Corruption . | . . . Average Corruption . | . . . Corruption Purged . | . . . Overload Shots . | . . . Overflow Damage 147 | . 147 . Projectiles . | . . . Explosions 147 | . 147 . Melee . | . . . Knockbacks . | . . . Impact . | . . . Kinetic . | . . . Secondary . | . . . Self-Inflicted Damage 206 | . 195 11 Shots 2 | . 2 . Rammed 3 | . . 3 Targets Rammed 3 | . . 3 Kicked . | . . . Crushed . | . . . Highest Temperature 230 | . 230 197 Average Temperature 90 | . 82 110 Received Heat Transfer 333 | . 24 309 Siege Activations . | . . . Robots Corrupted . | . . . Combat Hostiles . | . . . Parts Fried 1 | . . 1 Impact Corruptions . | . . . Robots Melted . | . . . Combat Hostiles . | . . . Parts Melted . | . . . Heat Transferred . | . . . Parts Sabotaged . | . . . Parts Stolen . | . . . Parts Stripped . | . . . Power Chain Reactions . | . . . Missiles Intercepted . | . . . Alert | -11 -10 -9 ------- Run | Scr Mat Mat Peak Influence 139 | . 139 80 Average Influence 32 | . 29 50 Maximum Alert Level . | . . . Low Security (%) 100 | 100 100 100 Level 1 . | . . . Level 2 . | . . . Level 3 . | . . . Level 4 . | . . . Level 5 . | . . . High Security . | . . . Max Security . | . . . Squads Dispatched 3 | . 2 1 Investigation 1 | . 1 . Extermination . | . . . Reinforcement 2 | . 1 1 Assault . | . . . Garrison . | . . . Intercept . | . . . Construction Impeded . | . . . Haulers Reinforced . | . . . Stealth | -11 -10 -9 --------- Run | Scr Mat Mat Distress Signals 1 | . . 1 Communications Jammed . | . . . Distress Signals . | . . . Times Spotted 37 | . 16 21 Peak Tracking Total 11 | . 4 11 Tactical Retreats 4 | . . 4 Traps | -11 -10 -9 ------- Run | Scr Mat Mat Traps Triggered 1 | . . 1 Indirectly . | . . . Trap Hack Attempts . | . . . Triggered . | . . . Disarmed . | . . . Reprogrammed . | . . . Reused . | . . . Traps Extracted . | . . . Installed . | . . . Triggered . | . . . Machines | -11 -10 -9 ---------- Run | Scr Mat Mat Machines Disabled 3 | . 3 . Max in Single Turn 2 | . 2 . Machines Sabotaged . | . . . Garrisons Compromised . | . . . Overloaded Fab Kills . | . . . Fab Network Shutdowns . | . . . Hacking | -11 -10 -9 --------- Run | Scr Mat Mat Machines Accessed 11 | . 8 3 Terminals 10 | . 7 3 Fabricators . | . . . Repair Stations . | . . . Recycling Units 1 | . 1 . Scanalyzers . | . . . Garrison Access . | . . . Total Hacks 39 | . 30 9 Successful 30 | . 23 7 Failed 9 | . 7 2 Catastrophic 2 | . 2 . Database Lockouts . | . . . Manual 23 | . 15 8 Terminals 36 | . 27 9 Fabricators . | . . . Repair Stations . | . . . Recycling Units 3 | . 3 . Scanalyzers . | . . . Garrison Access . | . . . Terminal Hacks 16 | . 14 2 Record 4 | . 4 . Terminal Index 3 | . 2 1 Alert Level 2 | . 2 . Unreport Threat 1 | . 1 . Dispatch Records 1 | . 1 . Investigation Status 1 | . 1 . Hauler Manifests 1 | . 1 . Zone Layout 3 | . 2 1 Fabricator Hacks . | . . . Repair Station Hacks . | . . . Recycling Unit Hacks 3 | . 3 . Process 1 | . 1 . Report Inventory 1 | . 1 . Retrieve Matter 1 | . 1 . Scanalyzer . | . . . Garrison Access Hacks . | . . . Unauthorized Hacks 11 | . 6 5 Terminals 11 | . 6 5 Assimilate 1 | . . 1 Botnet 9 | . 6 3 Disrupt 1 | . . 1 Fabricators . | . . . Repair Stations . | . . . Recycling Units . | . . . Scanalyzers . | . . . Garrison Access . | . . . Data Cores Recovered . | . . . Used . | . . . Hacking Detections 11 | . 8 3 Full Trace Events 1 | . 1 . Feedback Events . | . . . Feedback Blocked . | . . . Robot Schematics Acquired . | . . . Robots Built . | . . . Matter . | . . . Time . | . . . Total Robot Build Rating . | . . . Part Schematics Acquired . | . . . Parts Built . | . . . Matter . | . . . Time . | . . . Total Part Build Rating . | . . . Parts Repaired . | . . . Time . | . . . Parts Recycled . | . . . Recycled Matter 302 | . 302 . Retrieved Matter . | . . . Retrieved Components . | . . . Parts Scanalyzed . | . . . Part Schematics Acquired . | . . . Parts Damaged . | . . . Bothacking | -11 -10 -9 ------------ Run | Scr Mat Mat Used RIF Installer . | . . . Robots Hacked . | . . . Non-combat . | . . . Combat . | . . . Robot Hacks Applied . | . . . Relay Couplers Released . | . . . Robots Rewired . | . . . Allies Hacked . | . . . Hacks Repelled . | . . . Allies | -11 -10 -9 -------- Run | Scr Mat Mat Total Allies . | . . . Largest Group . | . . . Highest-Rated Group . | . . . Highest-Rated Ally . | . . . Total Orders . | . . . Ally Attacks . | . . . Total Damage . | . . . Kills . | . . . Allies Corrupted . | . . . Allies Melted . | . . . Intel | -11 -10 -9 ------- Run | Scr Mat Mat Robot Analysis Total . | . . . Derelict Logs Recovered . | . . . Drone Launches . | . . . Drone Recoveries . | . . . Exploration | -11 -10 -9 ------------- Run | Scr Mat Mat Turns Passed 937 | 57 671 209 Spaces Moved 857 | 59 556 242 Core 165 | 21 13 131 Treads 99 | . 98 1 Legs . | . . . Wheels 593 | 38 445 110 Hover . | . . . Flight . | . . . Fastest Speed 50 | 50 80 50 Average Speed 88 | 69 97 70 Slowest Speed 160 | 80 160 160 Overloaded Moves . | . . . Propulsion Burnouts . | . . . Robots Hopped . | . . . Cave-ins Triggered . | . . . Exploration Rate (%) 33 | 3 75 23 Regions Visited 2 Branch Regions . Pre-discovered Areas . | . . . Known Exits Taken 1 | . 1 . Unknown Exits Taken 1 | 1 . . Scrap Searched . | . . . Spaces Dug 1 | . . 1 Terrain Destroyed 31 | . 30 1 Melee . | . . . Projectile 1 | . . 1 AOE 30 | . 30 . Actions | -11 -10 -9 --------- Run | Scr Mat Mat Total 998 | 74 656 268 Wait 35 | . 25 10 Move 855 | 58 555 242 Hop . | . . . Pick Up 33 | 10 23 . Fast Attach . | . . . Attach 19 | 6 10 3 Detach 1 | . . 1 Swap 9 | . 9 . Drop 18 | . 18 . Fire 25 | . 16 9 Melee . | . . . Ram 3 | . . 3 Kick . | . . . Crush . | . . . Escape Stasis . | . . . Rewire . | . . . Trap . | . . . Miscellaneous . | . . . Route ------- -11/Scrapyard -10/Materials (discovered 3 exits: *Mat / *Min x2) -9/Materials History --------- Turn | Location | Event 47 | -11/Scrapyard | Discovered new exit (range 12) 58 | -11/Scrapyard | Entered Materials 218 | -10/Materials | Discovered new exit (range 14) 305 | -10/Materials | Build established: Mutant 465 | -10/Materials | Lost 5 parts (1p2n2w) 471 | -10/Materials | Discovered new exit (range 8) 481 | -10/Materials | Discovered new exit (range 15) 481 | -10/Materials | Identified exit to Materials 506 | -10/Materials | Identified exit to Mines 729 | -10/Materials | Entered another Materials area 729 | -9/Materials | Evolved 2 slots: Propulsion x1, Utility x1 898 | -9/Materials | Core integrity fell below 50% 900 | -9/Materials | Lost 5 parts (1p2n2w) 926 | -9/Materials | Core integrity fell below 20% 938 | -9/Materials | Destroyed by S-10 Pest with Light Assault Rifle Last Messages --------------- Testing... Disruption routine running. >>Trojan(Assimilate) Trojan loaded successfully. Testing... System interface override in place. [Achievement: root@] >>Trojan(Botnet) Trojan loaded successfully. Testing... Terminal linked with 2 systems. Awaiting botnet instructions. 00884_ K-01 Serf collects debris. 00890_ Triggered Blade Trap. 00890_ Massive razor-sharp blades shoot up from within the floor. 00890_ Imp. Treads severed. 00907_ Mining Laser destroyed. 00911_ Acquired 5 matter. 00925_ Slammed into Y-45 Defender. 00927_ T-07 Excavator is excavating. Map ----- +----------------------------------------------------+ | | | | | | | | | | | | | | | | | | | | | | | | | ??????????????????????????????????????????? | | ??????????????????????????????????????????? | | ??????????????????????????????????????????? | | ??????????????????????????????????????????? | | ??#####???????????#???????????????????????? | | ??# "#######????? ???????????????????????? | | ??# # #????# #??????????????????????? | | ??# # #????# ##?????????????????????? | | ??# # #????+ #?????????????????????? | | ??# # #????# +?????????????????????? | | ??# # #????# #?????????????????????? | | ??# # #????# #?????????????????????? | | ??# ##+########## #?????????????????????? | | ??# @ #?????????????????????? | | ??# s s #?????????????????????? | | ??## ###%= ######???#######???????????? | | ???# #?#= #????????# ##########+## | | ???# #?# ########## | | ???# #?# T | | ???# #?# | | ???# ###/####/########### ############# | | ???# ## #???????##### # # | | ???# ## #???????????# # # | | ??## ## """"""" #???????????# # # | | ??# # """"""" #??########## # / | | ??#! +%""""""" #??# # # # | | ??# # """"""" #??# """"" # # % # * | | ??## ## """"""" #??# """"" # ##+######/### | | ??# # #??# """"" # % | | ??# ############??# + | | ???##??????????????# """"" # | | ???????????????????# """"" # ######### | | ???????????????????# """"" # ####????? | | ?????????????####### # !!##???? | | ?????????????# ########## !#???? | | ?????????????# ########## !#???? | | ?????????????# T !#???? | | ?????????????# ########## !#???? | +----------------------------------------------------+ Best States ------------- Heat Dissipation 28 Energy Generation 10 Energy Capacity 250 Matter Stores 300 Matter Capacity 300 Sight Range 18 Robot Scan Range 10 Terrain Scan Density 10 Reclamation Efficiency 10 Evasion (%) 50 Recoil Reduction 2 Item Schematics ----------------- None Robot Schematics ------------------ None Fabricated ------------ Nothing Alien Tech Used ----------------- None Achievements -------------- Shopping List Storm Trooper root@ Challenges ------------ None Game ------ Seed ControlAlloyMinigun Manual? 0 Play Time 00:32:19 Cumulative 28.7 hours Start 2020.06.28 @ 19:22:26 End 2020.06.28 @ 19:53:30 Sessions 1 Manual Loads 0 Difficulty Rogue Special Mode None Game No. 45 Rogue 45 Adventurer 0 Explorer 0 Win Type - Total 0 Types 0/0/0/0/0/0/0 Lore% 23 Gallery% 37 Achievement% 17 Wizard Run 0 Options --------- ASCII 0 Keyboard 0 Movement Numpad Keybinds 0 Fullscreen 0 Font 16/SmallcapsGlow Map View 76x50 Tactical HUD 1 Map Filters NONE Filters NONE Steam 1 RUN: 6601d727-c20a-4011-851c-754a0640648c